fUST/lending_fUST_20250626
["ID","MTS","AMOUNT","RATE_DAILY","PERIOD"]
[367719399,1750902638899,-536.65,0.0001726,2]
[367719400,1750902638909,-460.0,0.0001726,2]
[367719401,1750902638918,-460.0,0.0001726,2]
[367719402,1750902638928,-752.51,0.0001726,2]
[367719403,1750902638937,-699.36,0.0001726,2]
[367719404,1750902638946,-985.21,0.0001726,2]
[367719405,1750902638956,-460.0,0.0001726,2]
[367719406,1750902638965,-1623.19,0.0001726,2]
[367719407,1750902638975,-460.0,0.0001726,2]
[367719408,1750902638984,-176.95006171,0.0001726,2]
[367719409,1750902638993,-460.0,0.0001726,2]
[367719410,1750902639002,-460.0,0.0001726,2]
[367719411,1750902639012,-460.0,0.0001726,2]
[367719412,1750902639021,-519.49,0.0001726,2]
[367719413,1750902639030,-562.73,0.0001726,2]
[367719414,1750902639040,-602.87,0.0001726,2]
[367719415,1750902639049,-628.25,0.0001726,2]
[367719416,1750902639058,-460.0,0.0001726,2]
[367719417,1750902639069,-460.0,0.0001726,2]
[367719418,1750902639078,-460.0,0.0001726,2]
[367719419,1750902639087,-460.0,0.0001726,2]
[367719420,1750902639099,-501.56070245,0.00017358,2]
[367719421,1750902639108,-501.13814084,0.00017358,2]
[367719422,1750902639118,-500.0,0.0001736,2]
[367719423,1750902639128,-500.0,0.0001736,2]
[367719424,1750902639137,-504.53964016,0.00017375,2]
[367719425,1750902639146,-500.0,0.00017379,2]
[367719426,1750902639156,-500.0,0.00017386,2]
[367719427,1750902639165,-500.0,0.00017386,2]
[367719428,1750902639174,-331.18375273,0.00017406,2]
[367719429,1750902639184,-500.0,0.00017406,2]
[367719430,1750902639195,-500.0,0.00017406,2]
[367719431,1750902639204,-245.6856227,0.00017406,2]
[367719432,1750902639215,-647.85,0.00017533,2]
[367719433,1750902639224,-546.32,0.00017533,2]
[367719434,1750902639234,-1548.1,0.00017533,2]
[367719435,1750902639243,-460.0,0.00017533,2]
[367719436,1750902639252,-460.0,0.00017534,2]
[367719437,1750902639261,-460.0,0.00017534,2]
[367719438,1750902639271,-482.72989731,0.00017534,2]
[367719439,1750902639281,-541.78,0.00017534,2]
[367719440,1750902639291,-487.32528495,0.00017534,2]
[367719441,1750902639300,-536.65,0.00017534,2]
[367719442,1750902639309,-460.0,0.00017534,2]
[367719443,1750902639319,-460.0,0.00017534,2]
[367719444,1750902639329,-752.51,0.00017534,2]
[367719445,1750902639338,-699.36,0.00017534,2]
[367719446,1750902639348,-985.21,0.00017534,2]
[367719447,1750902639357,-460.0,0.00017534,2]
[367719448,1750902639366,-1623.19,0.00017534,2]
[367719449,1750902639376,-460.0,0.00017534,2]
[367719450,1750902639385,-460.0,0.00017534,2]
[367719452,1750902639395,-460.0,0.00017534,2]
[367719453,1750902639404,-460.0,0.00017534,2]
[367719455,1750902639413,-519.49,0.00017534,2]
[367719456,1750902639422,-562.73,0.00017534,2]
[367719457,1750902639431,-602.87,0.00017534,2]
[367719458,1750902639441,-628.25,0.00017534,2]
[367719459,1750902639451,-460.0,0.00017534,2]
[367719460,1750902639460,-460.0,0.00017534,2]
[367719461,1750902639470,-460.0,0.00017534,2]
[367719462,1750902639479,-460.0,0.00017534,2]
[367719463,1750902639488,-305.56,0.00017798,3]
[367719465,1750902639497,-152.78,0.00017798,3]
[367719468,1750902639506,-458.38,0.00017798,3]
[367719470,1750902639516,-2000.0,0.000178,2]
[367719472,1750902639525,-2000.0,0.000178,3]
[367719474,1750902639535,-508.06586663,0.00017804,2]
[367719476,1750902639544,-647.85,0.00017807,2]
[367719477,1750902639554,-546.32,0.00017807,2]
[367719478,1750902639563,-1548.1,0.00017807,2]
[367719479,1750902639572,-460.0,0.00017807,2]
[367719480,1750902639586,-489.70573751,0.00017808,2]
[367719481,1750902639595,-248.21826435,0.00017808,2]
[367719482,1750902639604,-541.78,0.00017808,2]
[367719483,1750902639613,-536.65,0.00017808,2]
[367719484,1750902639623,-514.69134087,0.00017808,2]
[367719485,1750902639632,-460.0,0.00017808,2]
[367719486,1750902639642,-752.51,0.00017808,2]
[367719488,1750902639651,-699.36,0.00017808,2]
[367719489,1750902639660,-985.21,0.00017808,2]
[367719490,1750902639670,-460.0,0.00017808,2]
[367719491,1750902639679,-1623.19,0.00017808,2]
[367719492,1750902639689,-493.8010386,0.00017808,2]
[367719493,1750902639698,-460.0,0.00017808,2]
[367719494,1750902639707,-460.0,0.00017808,2]
[367719495,1750902639716,-460.0,0.00017808,2]
[367719496,1750902639726,-519.49,0.00017808,2]
[367719497,1750902639736,-562.73,0.00017808,2]
[367719498,1750902639746,-602.87,0.00017808,2]
[367719499,1750902639755,-628.25,0.00017808,2]
[367719500,1750902639765,-545.64911795,0.00017808,2]
[367719501,1750902639775,-460.0,0.00017808,2]
[367719502,1750902639784,-460.0,0.00017808,2]
[367719503,1750902639793,-460.0,0.00017808,2]
[367719505,1750902639803,-857.2292125,0.000179,2]
[367719506,1750902639812,-1000.0,0.00017908,2]
[367719507,1750902639822,-1000.0,0.00017908,2]
[367719508,1750902639832,-160.0,0.00017922,2]
[367719509,1750902639841,-160.0,0.00017922,2]
[367719510,1750902639852,-836.86812089,0.00017922,2]
[367719511,1750902639862,-230.22714675,0.00017922,2]
[367719512,1750902639872,-846.80634355,0.00017922,2]
[367719513,1750902639881,-213.69531788,0.00017922,2]
[367719514,1750902639890,-160.0,0.00017922,2]
[367719515,1750902639900,-160.0,0.00017922,2]
[367719517,1750902639910,-425.18553072,0.00017922,2]
[367719519,1750902639919,-160.0,0.00017922,2]
[367719521,1750902639929,-12558.06783089,0.00017922,2]
[367719523,1750902639940,-160.0,0.00017922,2]
[367719525,1750902639949,-160.0,0.00017922,2]
[367719527,1750902639959,-160.0,0.00017924,2]
[367719529,1750902639968,-1127.19226716,0.00017927,2]
[367719531,1750902639977,-1002.78026123,0.00017934,2]
[367719533,1750902639986,-1000.0,0.00017934,2]
[367719535,1750902639995,-1000.0,0.00017954,2]
[367719537,1750902640005,-420.0,0.00017963,2]
[367719539,1750902640015,-420.0,0.00017963,2]
[367719542,1750902640024,-453.94284246,0.00017982,2]
[367719543,1750902640033,-647.85,0.00018081,2]
[367719545,1750902640042,-546.32,0.00018081,2]
[367719546,1750902640051,-1548.1,0.00018081,2]
[367719547,1750902640061,-460.0,0.00018081,2]
[367719548,1750902640070,-541.78,0.00018082,2]
[367719549,1750902640079,-536.65,0.00018082,2]
[367719550,1750902640089,-460.0,0.00018082,2]
[367719551,1750902640099,-752.51,0.00018082,2]
[367719552,1750902640108,-699.36,0.00018082,2]
[367719553,1750902640118,-985.21,0.00018082,2]
[367719555,1750902640128,-460.0,0.00018082,2]
[367719557,1750902640138,-1623.19,0.00018082,2]
[367719559,1750902640147,-460.0,0.00018082,2]
[367719561,1750902640157,-460.0,0.00018082,2]
[367719562,1750902640166,-460.0,0.00018082,2]
[367719563,1750902640175,-519.49,0.00018082,2]
[367719564,1750902640185,-562.73,0.00018082,2]
[367719565,1750902640196,-602.87,0.00018082,2]
[367719566,1750902640205,-628.25,0.00018082,2]
[367719567,1750902640215,-460.0,0.00018082,2]
[367719568,1750902640224,-460.0,0.00018082,2]
[367719569,1750902640233,-460.0,0.00018082,2]
[367719570,1750902640243,-166.6693084,0.00018082,2]
[367719571,1750902640252,-857.22921224,0.00018176,2]
[367719572,1750902640261,-647.85,0.00018355,2]
[367719573,1750902640271,-546.32,0.00018355,2]
[367719574,1750902640280,-1548.1,0.00018355,2]
[367719575,1750902640289,-460.0,0.00018355,2]
[367719576,1750902640299,-541.78,0.00018356,2]
[367719577,1750902640308,-536.65,0.00018356,2]
[367719578,1750902640318,-460.0,0.00018356,2]
[367719579,1750902640327,-752.51,0.00018356,2]
[367719580,1750902640337,-699.36,0.00018356,2]
[367719581,1750902640346,-985.21,0.00018356,2]
[367719582,1750902640355,-460.0,0.00018356,2]
[367719583,1750902640364,-1623.19,0.00018356,2]
[367719584,1750902640373,-460.0,0.00018356,2]
[367719585,1750902640383,-460.0,0.00018356,2]
[367719586,1750902640392,-460.0,0.00018356,2]
[367719587,1750902640401,-519.49,0.00018356,2]
[367719588,1750902640410,-562.73,0.00018356,2]
[367719589,1750902640420,-602.87,0.00018356,2]
[367719590,1750902640429,-628.25,0.00018356,2]
[367719591,1750902640439,-460.0,0.00018356,2]
[367719592,1750902640448,-460.0,0.00018356,2]
[367719593,1750902640458,-453.94284245,0.00018437,2]
[367719594,1750902640467,-857.22921224,0.00018452,2]
[367719595,1750902640476,-1500.0,0.00018456,2]
[367719596,1750902640485,-511.32697788,0.00018456,2]
[367719597,1750902640642,-1003.72459923,0.00018482,2]
[367719598,1750902640652,-647.85,0.00018629,2]
[367719599,1750902640663,-546.32,0.00018629,2]
[367719600,1750902640673,-1548.1,0.00018629,2]
[367719601,1750902640682,-460.0,0.00018629,2]
[367719602,1750902640692,-541.78,0.0001863,2]
[367719603,1750902640701,-536.65,0.0001863,2]
[367719604,1750902640710,-460.0,0.0001863,2]
[367719605,1750902640719,-752.51,0.0001863,2]
[367719606,1750902640730,-699.36,0.0001863,2]
[367719607,1750902640739,-985.21,0.0001863,2]
[367719608,1750902640748,-516.47475618,0.0001863,2]
[367719609,1750902640759,-1623.19,0.0001863,2]
[367719610,1750902640768,-460.0,0.0001863,2]
[367719611,1750902640778,-460.0,0.0001863,2]
[367719612,1750902640787,-455.57043282,0.0001863,2]
[367719613,1750902640797,-519.49,0.0001863,2]
[367719614,1750902640806,-562.73,0.0001863,2]
[367719615,1750902640816,-602.87,0.0001863,2]
[367719616,1750902640825,-628.25,0.0001863,2]
[367719617,1750902640834,-460.0,0.0001863,2]
[367719618,1750902640843,-460.0,0.0001863,2]
[367719619,1750902640853,-857.22921224,0.00018728,2]
[367719620,1750902640863,-500.0,0.00018797,2]
[367719621,1750902640872,-500.0,0.00018797,2]
[367719622,1750902640881,-500.0,0.00018797,2]
[367719623,1750902640891,-428.25510563,0.00018797,2]
[367719624,1750902640900,-500.0,0.00018797,2]
[367719625,1750902640909,-500.0,0.00018797,2]
[367719626,1750902640919,-388.0,0.00018797,2]
[367719627,1750902640928,-500.0,0.00018797,2]
[367719628,1750902640941,-500.0,0.00018797,2]
[367719629,1750902640950,-500.0,0.00018797,2]
[367719630,1750902640960,-5000.0,0.00018797,2]
[367719631,1750902640970,-207.4,0.00018797,2]
[367719632,1750902640980,-500.0,0.00018797,2]
[367719633,1750902640989,-500.0,0.00018797,2]
[367719634,1750902640998,-500.0,0.00018797,2]
[367719635,1750902641008,-500.0,0.00018797,2]
[367719636,1750902641017,-500.0,0.00018797,2]
[367719637,1750902641026,-500.0,0.00018797,2]
[367719638,1750902641035,-500.0,0.00018797,2]
[367719639,1750902641044,-500.0,0.00018797,2]
[367719640,1750902641054,-500.0,0.00018797,2]
[367719641,1750902641063,-500.0,0.00018797,2]
[367719642,1750902641072,-500.0,0.00018797,2]
[367719643,1750902641082,-25000.0,0.00018797,2]
[367719644,1750902641091,-402.356,0.00018852,2]
[367719645,1750902641101,-453.94284245,0.00018891,2]
[367719646,1750902641111,-647.85,0.00018903,2]
[367719647,1750902641121,-546.32,0.00018903,2]
[367719648,1750902641131,-1548.1,0.00018903,2]
[367719649,1750902641142,-460.0,0.00018903,2]
[367719650,1750902641153,-541.78,0.00018904,2]
[367719651,1750902641163,-536.65,0.00018904,2]
[367719652,1750902641173,-460.0,0.00018904,2]
[367719653,1750902641183,-752.51,0.00018904,2]
[367719654,1750902641198,-699.36,0.00018904,2]
[367719655,1750902641207,-985.21,0.00018904,2]
[367719656,1750902641217,-1623.19,0.00018904,2]
[367719657,1750902641226,-460.0,0.00018904,2]
[367719658,1750902641235,-460.0,0.00018904,2]
[367719659,1750902641245,-519.49,0.00018904,2]
[367719660,1750902641255,-562.73,0.00018904,2]
[367719661,1750902641265,-602.87,0.00018904,2]
[367719662,1750902641274,-628.25,0.00018904,2]
[367719663,1750902641284,-460.0,0.00018904,2]
[367719664,1750902641296,-460.0,0.00018904,2]
[367719665,1750902641305,-417.243172,0.00018907,2]
[367719666,1750902641315,-432.68116936,0.00018962,2]
[367719667,1750902641325,-857.22921224,0.00019003,2]
[367719668,1750902641334,-504.79287362,0.00019004,2]
[367719669,1750902641344,-448.69037263,0.00019017,2]
[367719670,1750902641354,-418.74224608,0.00019031,2]
[367719671,1750902641363,-465.29191642,0.00019072,2]
[367719672,1750902641373,-482.50771733,0.00019127,2]
[367719673,1750902641382,-611.12,0.00019168,3]
[367719674,1750902641391,-305.56,0.00019168,3]
[367719675,1750902641400,-647.85,0.00019177,2]
[367719676,1750902641410,-546.32,0.00019177,2]
[367719677,1750902641419,-1548.1,0.00019177,2]
[367719678,1750902641428,-460.0,0.00019177,2]
[367719679,1750902641440,-316.82925284,0.00019178,2]
[367719680,1750902641449,-541.78,0.00019178,2]
[367719681,1750902641459,-536.65,0.00019178,2]
[367719682,1750902641468,-232.47071513,0.00019178,2]
[367719683,1750902641478,-752.51,0.00019178,2]
[367719684,1750902641487,-699.36,0.00019178,2]
[367719685,1750902641496,-985.21,0.00019178,2]
[367719686,1750902641506,-1623.19,0.00019178,2]
[367719687,1750902641516,-460.0,0.00019178,2]
[367719688,1750902641525,-460.0,0.00019178,2]
[367719689,1750902641535,-519.49,0.00019178,2]
[367719690,1750902641544,-562.73,0.00019178,2]
[367719691,1750902641554,-602.87,0.00019178,2]
[367719692,1750902641563,-628.25,0.00019178,2]
[367719693,1750902641573,-496.132374,0.00019178,2]
[367719694,1750902641586,-460.0,0.00019178,2]
[367719695,1750902641597,-268.378652,0.00019178,2]
[367719696,1750902641607,-206.33134213,0.00019178,3]
[367719697,1750902641616,-500.36050287,0.00019182,2]
[367719698,1750902641625,-518.87384147,0.00019237,2]
[367719699,1750902641634,-857.22921224,0.00019279,2]
[367719700,1750902641643,-538.07217361,0.00019292,2]
[367719701,1750902641655,-5000.0,0.00019345,2]
[367719702,1750902641665,-25000.0,0.00019345,2]
[367719703,1750902641674,-453.94284245,0.00019346,2]
[367719704,1750902641684,-557.98084403,0.00019347,2]
[367719705,1750902641696,-647.85,0.00019451,2]
[367719706,1750902641705,-546.32,0.00019451,2]
[367719707,1750902641715,-1548.1,0.00019451,2]
[367719708,1750902641723,-460.0,0.00019451,2]
[367719709,1750902641733,-541.78,0.00019452,2]
[367719710,1750902641742,-536.65,0.00019452,2]
[367719711,1750902641751,-752.51,0.00019452,2]
[367719712,1750902641761,-699.36,0.00019452,2]
[367719713,1750902641770,-985.21,0.00019452,2]
[367719714,1750902641780,-1623.19,0.00019452,2]
[367719715,1750902641789,-460.0,0.00019452,2]
[367719716,1750902641798,-240.40425209,0.00019452,2]
[367719717,1750902641807,-519.49,0.00019452,2]
[367719718,1750902641817,-562.73,0.00019452,2]
[367719719,1750902641826,-602.87,0.00019452,2]
[367719720,1750902641835,-628.25,0.00019452,2]
[367719721,1750902641845,-460.0,0.00019452,2]
[367719722,1750902641854,-857.22921224,0.00019555,2]
[367719723,1750902641864,-587.0,0.00019631,2]
[367719724,1750902641873,-183.0,0.00019631,2]
[367719725,1750902641882,-179.0,0.00019654,2]
[367719726,1750902641891,-179.0,0.00019681,2]
[367719727,1750902641900,-151.0,0.000197,2]
[367719728,1750902641910,-647.85,0.00019725,2]
[367719729,1750902641919,-546.32,0.00019725,2]
[367719730,1750902641929,-1548.1,0.00019725,2]
[367719731,1750902641940,-460.0,0.00019725,2]
[367719732,1750902641950,-541.78,0.00019726,2]
[367719733,1750902641960,-536.65,0.00019726,2]
[367719734,1750902641970,-752.51,0.00019726,2]
[367719735,1750902641979,-699.36,0.00019726,2]
[367719736,1750902641988,-985.21,0.00019726,2]
[367719737,1750902641999,-1623.19,0.00019726,2]
[367719738,1750902642009,-460.0,0.00019726,2]
[367719739,1750902642019,-519.49,0.00019726,2]
[367719740,1750902642028,-562.73,0.00019726,2]
[367719741,1750902642038,-602.87,0.00019726,2]
[367719742,1750902642047,-628.25,0.00019726,2]
[367719743,1750902642057,-460.0,0.00019726,2]
[367719744,1750902642066,-179.0,0.00019737,2]
[367719745,1750902642075,-179.0,0.00019768,2]
[367719746,1750902642085,-453.94284245,0.000198,2]
[367719747,1750902642094,-857.22921224,0.00019831,2]
[367719748,1750902642104,-500.0,0.00019873,2]
[367719749,1750902642113,-500.0,0.00019873,2]
[367719750,1750902642123,-500.0,0.00019873,2]
[367719751,1750902642132,-500.0,0.00019873,2]
[367719752,1750902642141,-500.0,0.00019873,2]
[367719753,1750902642151,-500.0,0.00019873,2]
[367719754,1750902642160,-500.0,0.00019873,2]
[367719755,1750902642170,-500.0,0.00019873,2]
[367719756,1750902642179,-179.0,0.00019886,2]
[367719757,1750902642190,-5066.59867231,0.00019893,2]
[367719758,1750902642200,-25129.0100375,0.00019893,2]
[367719759,1750902642210,-500.0,0.00019899,2]
[367719760,1750902642219,-250.0,0.00019899,2]
[367719761,1750902642229,-500.0,0.00019899,2]
[367719762,1750902642239,-300.0,0.00019899,2]
[367719763,1750902642249,-500.0,0.00019899,2]
[367719764,1750902642259,-500.0,0.00019899,2]
[367719765,1750902642269,-289.43008663,0.00019899,2]
[367719767,1750902642279,-620.16977044,0.00019899,2]
[367719768,1750902642288,-28986.5928871,0.000199,2]
[367719769,1750902642297,-3636.30530976,0.000199,2]
[367719770,1750902642307,-1091685.13958192,0.000199,7]
[367719774,1750902642353,-332.09400272,0.000199,7]
[367719839,1750902645912,-418.74224608,0.00019433,2]
[367719841,1750902645922,-418.74224608,0.00019483,2]
[367719842,1750902645931,-1452.30988054,0.000199,7]
[367719847,1750902645966,-472.95933375,0.000199,7]
[367719981,1750902699654,4400.0,0.00023,30]
[367719982,1750903043278,123041.12,0.0002506,60]
[367719983,1750903077436,315.31984163,0.0002506,60]
[367719985,1750903132120,300.0,0.0002506,60]
[367719991,1750903708178,435.443638,0.00013699,2]
[367719993,1750903724976,13013.9964597,0.00015763,2]
[367719994,1750903724999,11886.0035403,0.00015763,2]
[367720018,1750903832108,-300.0,0.00016437,2]
[367720019,1750903832118,-300.0,0.00016437,2]
[367720020,1750903832127,-151.0,0.00016437,2]
[367720021,1750903832138,-1200.0,0.00016437,2]
[367720022,1750903832147,-462.37339106,0.00016438,2]
[367720023,1750903832156,-460.97182448,0.00016438,2]
[367720024,1750903832166,-559.93099718,0.00016438,2]
[367720025,1750903832175,-245.86293737,0.00016438,2]
[367720026,1750903832185,-468.90993934,0.00016438,2]
[367720027,1750903832194,-303.90091638,0.00016438,2]
[367720028,1750903832202,-460.0,0.00016438,2]
[367720029,1750903832211,-460.0,0.00016438,2]
[367720030,1750903832221,-556.42669525,0.00016438,2]
[367720031,1750903832230,-469.71420474,0.00016438,2]
[367720032,1750903832239,-155.0,0.00016438,3]
[367720033,1750903832260,-460.0,0.00016711,2]
[367720034,1750903832269,-460.0,0.00016711,2]
[367720035,1750903832279,-486.14832919,0.00016711,2]
[367720036,1750903832287,-460.0,0.00016711,2]
[367720037,1750903832297,-460.0,0.00016711,2]
[367720038,1750903832306,-460.0,0.00016711,2]
[367720039,1750903832315,-500.74,0.00016711,2]
[367720040,1750903832324,-460.0,0.00016711,2]
[367720041,1750903832334,-472.07552345,0.00016711,2]
[367720042,1750903832343,-552.1012898,0.00016711,2]
[367720043,1750903832352,-460.0,0.00016711,2]
[367720044,1750903832362,-646.27,0.00016711,2]
[367720045,1750903832371,-211.55935034,0.00016711,2]
[367720046,1750903832381,-258.5624522,0.00016711,2]
[367720047,1750903832390,-519.55945776,0.00016711,2]
[367720048,1750903832400,-460.0,0.00016711,2]
[367720049,1750903832409,-577.16187145,0.00016711,2]
[367720050,1750903832419,-478.30001374,0.00016711,2]
[367720051,1750903832428,-460.0,0.00016711,2]
[367720052,1750903832437,-460.0,0.00016711,2]
[367720053,1750903832446,-460.0,0.00016711,2]
[367720054,1750903832456,-460.0,0.00016711,2]
[367720055,1750903832466,-482.61,0.00016711,2]
[367720056,1750903832475,-463.73842754,0.00016711,2]
[367720057,1750903832484,-523.49315351,0.00016711,2]
[367720058,1750903832494,-474.9149222,0.00016711,2]
[367720059,1750903832503,-460.0,0.00016711,2]
[367720060,1750903832513,-487.31652225,0.00016711,2]
[367720061,1750903832522,-460.0,0.00016711,2]
[367720062,1750903832532,-441.44002555,0.00016711,2]
[367720063,1750903832541,-460.0,0.00016711,2]
[367720064,1750903832550,-468.1004891,0.00016711,2]
[367720065,1750903832560,-465.35435436,0.00016711,2]
[367720066,1750903832569,-460.0,0.00016712,2]
[367720067,1750903832579,-628.63475572,0.000169,2]
[367720068,1750903832588,-500.0,0.00016985,2]
[367720069,1750903832597,-460.0,0.00016985,2]
[367720070,1750903832606,-501.79289169,0.00016985,2]
[367720071,1750903832616,-258.71,0.00016985,2]
[367720072,1750903832625,-604.88321844,0.00016985,2]
[367720073,1750903832635,-500.74,0.00016985,2]
[367720074,1750903832644,-221.69377472,0.00016985,2]
[367720075,1750903832654,-460.0,0.00016985,2]
[367720076,1750903832663,-646.27,0.00016985,2]
[367720077,1750903832672,-460.0,0.00016985,2]
[367720078,1750903832682,-460.0,0.00016985,2]
[367720079,1750903832691,-494.45,0.00016985,2]
[367720080,1750903832700,-483.67,0.00016985,2]
[367720081,1750903832709,-268.72,0.00016985,2]
[367720082,1750903832719,-460.0,0.00016985,2]
[367720083,1750903832728,-460.0,0.00016985,2]
[367720084,1750903832737,-460.0,0.00016985,2]
[367720085,1750903832746,-500.0,0.00017209,2]
[367720086,1750903832755,-628.63475564,0.0001721,2]
[367720087,1750903832765,-460.0,0.00017259,2]
[367720088,1750903832774,-500.74,0.00017259,2]
[367720089,1750903832783,-460.0,0.00017259,2]
[367720090,1750903832792,-646.27,0.00017259,2]
[367720091,1750903832802,-460.0,0.00017259,2]
[367720092,1750903832811,-460.0,0.00017259,2]
[367720093,1750903832820,-460.0,0.00017259,2]
[367720094,1750903832830,-460.0,0.00017259,2]
[367720095,1750903832839,-500.0,0.0001726,2]
[367720096,1750903832848,-500.0,0.0001726,2]
[367720097,1750903832861,-500.0,0.0001726,2]
[367720098,1750903832870,-500.0,0.0001726,2]
[367720099,1750903832879,-500.0,0.0001726,2]
[367720100,1750903832888,-500.0,0.0001726,2]
[367720101,1750903832898,-500.0,0.0001726,2]
[367720102,1750903832907,-500.0,0.0001726,2]
[367720103,1750903832917,-151.0,0.0001726,2]
[367720104,1750903832926,-151.0,0.0001726,2]
[367720105,1750903832935,-151.0,0.0001726,2]
[367720106,1750903832945,-151.0,0.0001726,2]
[367720107,1750903832954,-183.63034823,0.0001726,2]
[367720108,1750903832963,-500.0,0.0001726,2]
[367720109,1750903832973,-151.0,0.0001726,2]
[367720110,1750903832983,-151.0,0.0001726,2]
[367720111,1750903832991,-500.0,0.0001726,2]
[367720112,1750903833001,-500.0,0.0001726,2]
[367720113,1750903833010,-500.0,0.0001726,2]
[367720114,1750903833019,-151.0,0.0001726,2]
[367720115,1750903833028,-151.92298975,0.0001726,2]
[367720116,1750903833037,-151.0,0.0001726,2]
[367720117,1750903833050,-151.0,0.0001726,2]
[367720118,1750903833059,-152.27635966,0.0001726,2]
[367720119,1750903833070,-500.0,0.0001726,2]
[367720120,1750903833079,-151.80119937,0.0001726,2]
[367720121,1750903833088,-151.72013218,0.0001726,2]
[367720122,1750903833097,-151.0,0.0001726,2]
[367720123,1750903833106,-151.6331759,0.0001726,2]
[367720124,1750903833116,-151.0,0.0001726,2]
[367720125,1750903833125,-151.0,0.0001726,2]
[367720126,1750903833136,-500.0,0.00017287,2]
[367720127,1750903833145,-500.0,0.00017287,2]
[367720128,1750903833155,-500.0,0.00017287,2]
[367720129,1750903833165,-500.0,0.00017287,2]
[367720130,1750903833175,-500.0,0.00017287,2]
[367720131,1750903833185,-500.0,0.00017287,2]
[367720132,1750903833195,-500.0,0.00017287,2]
[367720133,1750903833205,-500.0,0.00017287,2]
[367720134,1750903833215,-151.0,0.00017287,2]
[367720135,1750903833224,-151.0,0.00017287,2]
[367720136,1750903833233,-151.0,0.00017287,2]
[367720137,1750903833243,-151.0,0.00017287,2]
[367720138,1750903833252,-500.0,0.00017287,2]
[367720139,1750903833262,-151.0,0.00017287,2]
[367720140,1750903833272,-151.0,0.00017287,2]
[367720141,1750903833282,-500.0,0.00017287,2]
[367720142,1750903833292,-500.0,0.00017287,2]
[367720143,1750903833301,-500.0,0.00017287,2]
[367720144,1750903833310,-151.0,0.00017287,2]
[367720145,1750903833320,-151.0,0.00017287,2]
[367720146,1750903833330,-151.0,0.00017287,2]
[367720147,1750903833340,-500.0,0.00017287,2]
[367720148,1750903833350,-151.0,0.00017287,2]
[367720149,1750903833359,-151.0,0.00017287,2]
[367720150,1750903833369,-199.18452164,0.00017287,2]
[367720151,1750903833378,-500.0,0.00017315,2]
[367720152,1750903833387,-500.0,0.00017315,2]
[367720153,1750903833398,-500.0,0.00017315,2]
[367720154,1750903833407,-225.97730227,0.00017315,2]
[367720216,1750903838100,-365.16776997,0.00016711,2]
[367720220,1750903838113,-94.83223003,0.00016711,2]
[367720223,1750903838122,-458.86490255,0.00016711,2]
[367720225,1750903838132,-171.6,0.00016985,2]
[367720227,1750903838142,-274.02269773,0.00017315,2]
[367720229,1750903838151,-336.98060721,0.00017315,2]
[367720231,1750903838163,-163.01939279,0.00017315,2]
[367720233,1750903838173,-195.24415089,0.00017315,2]
[367720742,1750903843058,-469.45131305,0.00016711,2]
[367720744,1750903843068,-304.75584911,0.00017315,2]